bitfinex/quotes_SOLUSD_20241021
["timestamp","ask_amount","ask_price","bid_price","bid_amount"]
[1729492185213,23.776884,170.68,170.63,1.465818]
[1729492185415,23.776884,170.68,170.64,1.465818]
[1729492185597,23.776884,170.68,170.61,0.5]
[1729492185798,23.776884,170.68,170.62,1.46581763]
[1729492185999,23.776884,170.68,170.63,1.46581713]
[1729492186217,23.776884,170.68,170.64,1.46581713]
[1729492186405,23.776884,170.68,170.61,0.5]
[1729492186602,23.776884,170.7,170.62,1.4658577]
[1729492186804,23.776884,170.7,170.63,1.4658577]
[1729492187000,23.776884,170.7,170.61,0.5]
[1729492187001,23.776884,170.7,170.64,1.4658577]
[1729492187199,23.776884,170.7,170.65,1.46576918]
[1729492187415,23.776884,170.7,170.61,0.5]
[1729492187622,23.776884,170.7,170.62,1.46576265]
[1729492187835,23.776884,170.7,170.63,1.46576265]
[1729492187997,23.776884,170.7,170.64,1.46576265]
[1729492188201,23.776884,170.7,170.65,1.46576265]
[1729492188398,23.776884,170.7,170.61,0.5]
[1729492188602,23.776884,170.7,170.62,1.46576211]
[1729492188800,23.776884,170.7,170.63,1.46576211]
[1729492189027,23.776884,170.68,170.64,1.46576211]
[1729492189228,23.776884,170.68,170.61,0.5]
[1729492189229,23.776884,170.68,170.65,1.46576211]
[1729492189523,23.776884,170.71,170.61,0.5]
[1729492189728,23.776884,170.71,170.62,1.46574276]
[1729492189908,23.776884,170.71,170.63,1.46574276]
[1729492190113,23.776884,170.71,170.64,1.46574106]
[1729492190419,23.776884,170.71,170.65,1.46574106]
[1729492190600,23.776884,170.71,170.66,1.46574106]
[1729492190800,23.776884,170.71,170.61,0.5]
[1729492191101,23.776884,170.71,170.62,1.46562585]
[1729492191302,23.776884,170.71,170.63,1.46562585]
[1729492191501,23.776884,170.71,170.64,21.46562585]
[1729492191728,23.776884,170.71,170.65,1.46562585]
[1729492191908,23.776884,170.71,170.64,20.0]
[1729492191909,11.36462434,170.72,170.66,1.46562585]
[1729492192223,11.36462434,170.72,170.64,20.0]
[1729492192224,11.36462434,170.72,170.67,1.46562585]
[1729492192421,11.36462434,170.72,170.68,1.46562585]
[1729492192617,11.36462434,170.72,170.69,1.46562585]
[1729492192811,11.36462434,170.72,170.7,1.46562585]
[1729492193011,11.36462434,170.72,170.71,1.46562585]
[1729492193431,11.36462434,170.72,170.64,20.0]
[1729492193605,11.36462434,170.72,170.65,1.46523788]
[1729492193806,11.36462434,170.72,170.66,1.46523788]
[1729492194028,11.36462434,170.72,170.67,1.46523788]
[1729492194327,11.36462434,170.72,170.68,1.46523788]
[1729492194529,11.36462434,170.72,170.69,1.46523788]
[1729492194734,11.36462434,170.72,170.7,1.46523788]
[1729492194908,11.36462434,170.72,170.64,23.69412324]
[1729492195110,11.36462434,170.72,170.65,1.46524262]
[1729492195311,11.36462434,170.72,170.66,1.46524262]
[1729492195512,11.36462434,170.72,170.67,1.46524262]
[1729492195707,11.36462434,170.72,170.68,1.46524262]
[1729492195934,11.36462434,170.72,170.69,1.46524262]
[1729492196118,11.36462434,170.72,170.7,1.46524262]
[1729492196321,11.36462434,170.72,170.64,23.69412324]
[1729492196516,11.36462434,170.72,170.65,1.46524618]
[1729492196716,11.36462434,170.72,170.66,1.46524618]
[1729492196919,11.36462434,170.72,170.67,1.46524618]
[1729492197119,11.36462434,170.72,170.68,1.46524618]
[1729492197318,11.36462434,170.72,170.69,1.46524618]
[1729492197532,11.36462434,170.72,170.7,1.46524618]
[1729492197715,11.36462434,170.72,170.64,20.0]
[1729492197915,11.36462434,170.72,170.65,1.46521119]
[1729492198119,11.36462434,170.72,170.66,1.46521119]
[1729492198327,11.36462434,170.72,170.67,1.46521119]
[1729492198529,11.36462434,170.72,170.68,1.46521119]
[1729492198836,11.36462434,170.72,170.69,1.46521119]
[1729492199032,11.36462434,170.72,170.64,20.0]
[1729492199234,11.36462434,170.72,170.65,1.46519035]
[1729492199416,11.36462434,170.72,170.66,1.46519035]
[1729492199617,11.36462434,170.72,170.67,1.46519035]
[1729492199930,11.36462434,170.72,170.68,1.46519035]
[1729492200128,11.36462434,170.72,170.64,20.0]
[1729492200324,11.36462434,170.72,170.65,1.46526681]
[1729492200632,11.36462434,170.72,170.66,1.46526681]
[1729492200845,11.36462434,170.72,170.67,1.46541212]
[1729492201030,11.36462434,170.72,170.64,20.0]
[1729492201240,11.36462434,170.72,170.65,1.46541163]
[1729492201441,40.263184,170.71,170.65,1.46541163]
[1729492201632,40.263184,170.71,170.61,0.5]
[1729492202146,23.776884,170.69,170.61,0.5]
[1729492202316,23.776884,170.69,170.61,1.96566741]
[1729492202513,23.776884,170.69,170.62,1.46566741]
[1729492202712,23.776884,170.69,170.63,1.46566741]
[1729492203033,23.776884,170.69,170.61,0.5]
[1729492203239,12.2428,170.68,170.61,0.5]
[1729492203540,6.3838,170.68,170.61,0.5]
[1729492203844,6.3838,170.68,170.61,1.96581829]
[1729492204016,6.3838,170.68,170.62,1.46581829]
[1729492204212,6.3838,170.68,170.61,0.5]
[1729492204213,6.3838,170.68,170.63,1.46581829]
[1729492204430,6.3838,170.68,170.61,0.5]
[1729492205729,23.776884,170.69,170.62,1.46577284]
[1729492207230,23.776884,170.69,170.63,1.46577148]
[1729492207444,23.776884,170.69,170.64,1.46577148]
[1729492207741,23.776884,170.69,170.61,0.5]
[1729492207922,23.776884,170.69,170.62,1.46577197]
[1729492209440,22.3442,170.71,170.62,1.46577197]
[1729492209441,23.776884,170.7,170.62,1.46577197]
[1729492211443,23.776884,170.7,170.61,0.5]
[1729492211652,23.776884,170.7,170.62,1.46577774]
[1729492211826,23.776884,170.7,170.63,1.46577774]
[1729492212028,23.776884,170.7,170.64,1.46577774]
[1729492212346,23.776884,170.7,170.65,1.46577774]
[1729492212528,23.776884,170.7,170.61,0.5]
[1729492212723,23.776884,170.7,170.62,1.46570985]
[1729492212930,23.776884,170.7,170.63,1.46570985]
[1729492213233,23.776884,170.7,170.64,1.46570985]
[1729492213440,23.776884,170.7,170.65,1.46570985]
[1729492213756,23.776884,170.7,170.61,0.5]
[1729492214058,23.776884,170.7,170.62,1.46572716]
[1729492214230,23.776884,170.7,170.63,1.46572716]
[1729492214421,23.776884,170.7,170.64,1.46572716]
[1729492214622,23.776884,170.7,170.61,0.5]
[1729492214837,23.776884,170.7,170.62,1.46574803]
[1729492215048,23.776884,170.7,170.61,0.5]
[1729492215255,23.776884,170.7,170.62,1.46574754]
[1729492215548,23.776884,170.7,170.63,1.46574754]
[1729492215752,23.776884,170.7,170.64,1.46574754]
[1729492216045,23.776884,170.7,170.61,0.5]
[1729492216252,23.776884,170.7,170.62,1.46574963]
[1729492216451,23.776884,170.7,170.63,1.46574963]
[1729492216746,23.776884,170.7,170.64,1.46574963]
[1729492216928,23.776884,170.7,170.61,0.5]
[1729492217123,23.776884,170.7,170.62,1.46574963]
[1729492217333,23.776884,170.7,170.63,1.46574963]
[1729492217534,23.776884,170.7,170.64,1.46574963]
[1729492217733,23.776884,170.7,170.61,0.5]
[1729492217933,23.776884,170.7,170.62,1.46576988]
[1729492218148,23.776884,170.7,170.63,1.46576988]
[1729492218359,23.776884,170.7,170.64,1.46576988]
[1729492218528,23.776884,170.7,170.61,0.5]
[1729492218847,23.776884,170.7,170.62,1.4657684]
[1729492219027,23.776884,170.7,170.63,1.4657684]
[1729492219371,23.776884,170.68,170.64,1.4657684]
[1729492219648,23.776884,170.68,170.61,0.5]
[1729492219854,23.776884,170.68,170.62,1.46577762]
[1729492220149,64.786084,170.68,170.63,1.46577762]
[1729492220323,64.786084,170.68,170.61,0.5]
[1729492220528,64.786084,170.68,170.62,1.46587585]
[1729492221050,64.786084,170.68,170.63,1.46587585]
[1729492221248,64.786084,170.68,170.61,0.5]
[1729492221453,64.786084,170.68,170.62,1.46587156]
[1729492222032,23.776884,170.66,170.61,0.5]
[1729492223550,23.776884,170.66,170.61,1.96592423]
[1729492223751,23.776884,170.66,170.62,1.46592423]
[1729492223968,15.2323,170.65,170.61,0.5]
[1729492224152,23.776884,170.62,170.61,0.5]
[1729492224556,15.2323,170.65,170.61,0.5]
[1729492224756,23.776884,170.64,170.61,0.5]
[1729492224959,47.81582868,170.67,170.61,0.5]
[1729492225164,6.5605,170.67,170.61,0.5]
[1729492225367,6.5605,170.67,170.61,1.9661567]
[1729492225668,15.4085,170.69,170.62,1.4661567]
[1729492225862,15.4085,170.69,170.63,1.4661567]
[1729492226063,15.4085,170.69,170.61,0.5]
[1729492226473,23.776884,170.68,170.61,0.5]
[1729492226973,23.776884,170.68,170.61,1.96589352]
[1729492227181,23.776884,170.68,170.62,1.46589352]
[1729492227471,23.776884,170.68,170.63,1.46589352]
[1729492227660,23.776884,170.68,170.61,0.5]
[1729492228775,23.776884,170.68,170.61,1.96589885]
[1729492228955,23.776884,170.68,170.62,1.46589885]
[1729492229158,23.776884,170.68,170.63,1.46589885]
[1729492229357,23.776884,170.68,170.61,0.5]
[1729492230483,23.776884,170.68,170.61,1.96584618]
[1729492230654,23.776884,170.68,170.62,1.46584618]
[1729492230975,23.776884,170.68,170.63,1.46584618]
[1729492231278,23.776884,170.68,170.61,0.5]
[1729492231671,23.776884,170.68,170.62,1.46584304]
[1729492231855,23.776884,170.68,170.63,1.46584304]
[1729492232053,23.776884,170.68,170.61,0.5]
[1729492232975,23.776884,170.68,170.61,1.96585043]
[1729492233156,23.776884,170.68,170.62,1.46585043]
[1729492233360,23.776884,170.68,170.61,0.5]
[1729492234455,23.776884,170.68,170.61,1.96590998]
[1729492234670,23.776884,170.68,170.62,1.46590998]
[1729492234950,23.776884,170.68,170.61,0.5]
[1729492235866,23.776884,170.68,170.61,1.96591207]
[1729492236081,23.776884,170.68,170.62,1.46591207]
[1729492236255,23.776884,170.68,170.63,1.46591207]
[1729492236576,23.776884,170.68,170.61,0.5]
[1729492236763,23.776884,170.68,170.62,1.46588748]
[1729492238070,15.4085,170.69,170.62,1.46588748]
[1729492238278,23.776884,170.7,170.63,1.46588748]
[1729492238493,35.15,170.73,170.64,1.46588748]
[1729492238779,35.15,170.73,170.65,1.46588748]
[1729492238962,35.15,170.73,170.66,1.46588748]
[1729492239274,35.15,170.73,170.67,1.46588748]
[1729492239577,35.15,170.73,170.63,20.0]
[1729492239880,23.776884,170.72,170.64,1.46555975]
[1729492240079,23.776884,170.72,170.65,1.46555975]
[1729492240277,23.776884,170.72,170.66,1.46555975]
[1729492240585,23.776884,170.72,170.67,1.46555975]
[1729492240885,23.776884,170.72,170.63,20.0]
[1729492241177,23.776884,170.72,170.64,1.46554443]
[1729492241380,23.776884,170.72,170.65,1.46554443]
[1729492241555,23.776884,170.72,170.66,1.46554443]
[1729492241757,23.776884,170.72,170.63,20.0]
[1729492241975,23.776884,170.72,170.64,1.46561629]
[1729492242175,23.776884,170.72,170.65,1.46561629]
[1729492242380,23.776884,170.72,170.66,1.46561629]
[1729492242575,64.784484,170.72,170.63,20.0]
[1729492242774,64.784484,170.72,170.64,1.465616]
[1729492242963,64.784484,170.72,170.65,1.465616]
[1729492243163,64.784484,170.72,170.66,1.465616]
[1729492243364,64.784484,170.72,170.63,20.0]
[1729492243566,64.784484,170.72,170.64,1.46562276]
[1729492243785,64.784484,170.72,170.65,1.46562276]
[1729492243786,58.926884,170.72,170.65,1.46562276]
[1729492244086,23.776884,170.72,170.66,1.46562276]
[1729492244400,23.776884,170.72,170.67,1.46562276]
[1729492244688,23.776884,170.72,170.68,1.46562276]
[1729492244865,23.776884,170.72,170.63,20.0]
[1729492245064,23.776884,170.72,170.64,1.46552574]
[1729492245381,23.776884,170.72,170.65,1.46558815]
[1729492245584,23.776884,170.72,170.63,20.0]
[1729492245765,23.776884,170.72,170.64,1.46558403]
[1729492246084,23.776884,170.72,170.65,1.46558403]
[1729492246387,23.776884,170.72,170.66,1.46558403]
[1729492246565,23.776884,170.72,170.67,1.46558403]
[1729492246769,23.776884,170.72,170.63,20.0]
[1729492247070,23.776884,170.72,170.64,1.46553742]
[1729492247292,23.776884,170.72,170.65,1.46553742]
[1729492247490,23.776884,170.72,170.66,1.46553742]
[1729492247664,10.85685163,170.73,170.67,1.46553742]
[1729492247988,10.85685163,170.73,170.68,1.46553742]
[1729492248191,10.85685163,170.73,170.69,1.46553742]
[1729492248365,10.85685163,170.73,170.7,1.46553742]
[1729492248566,10.85685163,170.73,170.65,20.0]
[1729492248871,10.85685163,170.73,170.66,1.4652883]
[1729492249069,10.85685163,170.73,170.67,1.4652883]
[1729492249271,10.85685163,170.73,170.68,1.4652883]
[1729492249481,10.85685163,170.73,170.69,1.4652883]
[1729492249682,10.85685163,170.73,170.7,1.4652883]
[1729492249985,10.85685163,170.73,170.71,1.4652883]
[1729492250184,10.85685163,170.73,170.65,20.0]
[1729492250390,10.85685163,170.73,170.66,1.46520718]
[1729492250687,10.85685163,170.73,170.67,1.46520718]
[1729492250889,10.85685163,170.73,170.68,1.46520718]
[1729492251093,10.85685163,170.73,170.69,1.46520718]
[1729492251262,10.85685163,170.73,170.7,1.46520718]
[1729492251468,10.85685163,170.73,170.71,1.46520718]
[1729492251669,10.85685163,170.73,170.65,20.0]
[1729492251868,10.85685163,170.73,170.66,1.46519925]
[1729492252074,10.85685163,170.73,170.67,1.46519925]
[1729492252285,10.85685163,170.73,170.68,1.46519925]
[1729492252488,10.85685163,170.73,170.65,20.0]
[1729492252793,10.85685163,170.73,170.66,1.46520073]
[1729492253091,10.85685163,170.73,170.67,1.46520073]
[1729492253294,10.85685163,170.73,170.68,1.46520073]
[1729492253479,10.85685163,170.73,170.69,1.46520073]
[1729492253678,10.85685163,170.73,170.7,1.46520073]
[1729492253993,10.85685163,170.73,170.71,1.46520073]
[1729492254186,10.85685163,170.73,170.65,23.58945309]
[1729492254390,10.85685163,170.73,170.66,1.46513691]
[1729492254579,10.85685163,170.73,170.67,1.46513691]
[1729492254886,10.85685163,170.73,170.68,1.46513691]
[1729492255095,10.85685163,170.73,170.69,1.46513691]
[1729492255288,10.85685163,170.73,170.7,1.46513691]
[1729492255494,10.85685163,170.73,170.71,1.46513691]
[1729492255695,10.85685163,170.73,170.65,23.58945309]
[1729492255888,10.85685163,170.73,170.66,1.46513706]
[1729492256090,10.85685163,170.73,170.67,1.46513706]
[1729492256384,10.85685163,170.73,170.65,23.58945309]
[1729492256385,10.85685163,170.73,170.68,1.46513706]
[1729492256584,22.7926,170.79,170.69,1.46502546]
[1729492256791,22.7926,170.79,170.68,20.0]
[1729492256792,22.7926,170.79,170.7,1.46502546]
[1729492256973,22.7926,170.79,170.71,1.46502546]
[1729492257295,22.7926,170.79,170.72,1.46502546]
[1729492257478,22.7926,170.79,170.73,1.46502546]
[1729492257680,22.7926,170.79,170.68,20.0]
[1729492257877,22.7926,170.79,170.69,1.46499915]
[1729492258183,22.7926,170.79,170.7,1.46499915]
[1729492258396,22.7926,170.79,170.71,1.46499915]
[1729492258591,22.7926,170.79,170.72,1.46499915]
[1729492258799,22.7926,170.79,170.68,20.0]
[1729492259090,22.7926,170.79,170.69,1.46503731]
[1729492259405,22.7926,170.79,170.7,1.46503731]
[1729492259695,22.7926,170.79,170.71,1.46503731]
[1729492259990,22.7926,170.79,170.72,1.46504773]
[1729492260192,6.09932557,170.82,170.69,0.1]
[1729492260398,6.09932557,170.82,170.7,1.46485996]
[1729492260600,29.631284,170.82,170.71,1.46485996]
[1729492260797,29.631284,170.82,170.72,1.46485996]
[1729492260994,29.631284,170.82,170.73,1.46485996]
[1729492261172,29.631284,170.82,170.68,26.5466]
[1729492261373,29.631284,170.82,170.69,1.46497]
[1729492261596,29.631284,170.82,170.7,1.46497]
[1729492261785,23.776884,170.82,170.71,1.46497]
[1729492261987,23.776884,170.82,170.72,1.46497]
[1729492262294,23.776884,170.82,170.73,1.46497]
[1729492262476,23.776884,170.82,170.69,1.46497]
[1729492262675,23.776884,170.82,170.68,26.5466]
[1729492262676,23.776884,170.82,170.7,1.46491615]
[1729492262893,23.776884,170.82,170.71,1.46491615]
[1729492263077,23.776884,170.82,170.72,1.46491615]
[1729492263275,23.776884,170.82,170.73,1.46491615]
[1729492263477,23.776884,170.82,170.74,1.46491615]
[1729492263683,23.776884,170.82,170.68,26.5466]
[1729492263981,73.61083227,170.83,170.69,1.56480711]
[1729492264286,67.51565577,170.83,170.71,20.0]
[1729492264493,67.51565577,170.83,170.72,1.46480711]
[1729492264994,32.36565577,170.83,170.72,1.46480711]
[1729492266982,32.36565577,170.83,170.73,2.01951333]
[1729492267181,32.36565577,170.83,170.71,20.0]
[1729492267376,32.36565577,170.83,170.72,1.46478004]
[1729492269612,32.36565577,170.83,170.71,20.0]
[1729492269776,32.36565577,170.83,170.73,1.46467096]
[1729492269983,32.36565577,170.83,170.71,20.0]
[1729492270193,32.36565577,170.83,170.72,1.46467145]
[1729492271602,32.36565577,170.83,170.72,1.56467145]
[1729492272079,32.36565577,170.83,170.72,1.46467145]
[1729492272275,32.36565577,170.83,170.73,0.1]
[1729492272488,10.21405577,170.83,170.73,0.1]
[1729492272786,10.21405577,170.83,170.75,20.0]
[1729492281507,10.21405577,170.83,170.75,20.1]
[1729492282796,10.21405577,170.83,170.75,20.0]
[1729492283815,10.21405577,170.83,170.74,0.1]
[1729492284189,10.21405577,170.83,170.74,20.1]
[1729492289394,23.776884,170.87,170.74,20.1]
[1729492290608,23.776884,170.87,170.75,1.46443985]
[1729492290994,23.776884,170.87,170.74,20.1]
[1729492291316,23.776884,170.87,170.75,1.46445841]
[1729492291610,23.776884,170.87,170.74,20.1]
[1729492291814,23.776884,170.87,170.75,1.46446107]
[1729492292614,23.776884,170.87,170.74,20.1]
[1729492293615,23.776884,170.87,170.75,1.46447883]
[1729492293815,23.776884,170.87,170.74,20.1]
[1729492294993,23.776884,170.87,170.75,1.46449159]
[1729492295194,23.776884,170.87,170.74,20.1]
[1729492295515,23.776884,170.87,170.75,1.46449159]
[1729492298919,23.776884,170.87,170.76,1.46431299]
[1729492299124,23.776884,170.87,170.77,1.46431299]
[1729492299298,23.776884,170.87,170.78,1.46431299]
[1729492299622,23.776884,170.87,170.74,20.1]
[1729492299806,23.776884,170.87,170.75,1.46431544]
[1729492302831,22.987,170.88,170.77,0.1]
[1729492303117,21.1235,170.92,170.79,20.2]
[1729492303320,27.2184642,170.92,170.81,20.1]
[1729492303501,27.2184642,170.92,170.82,1.46431544]
[1729492303710,21.1235,170.92,170.82,16.95781544]
[1729492304012,21.1235,170.92,170.83,21.46431544]
[1729492304217,21.1235,170.92,170.84,1.46431544]
[1729492304520,6.09429955,170.95,170.84,1.46431544]
[1729492305312,21.6811,170.96,170.85,0.1]
[1729492307621,22.7824,171.0,170.87,0.1]
[1729492307806,22.7824,171.0,170.88,0.1]
[1729492308007,22.7824,171.0,170.9,20.1]
[1729492308204,22.7824,171.0,170.91,1.46431544]
[1729492309516,22.7824,171.0,170.9,20.1]
[1729492309719,22.7824,171.0,170.9,23.72730159]
[1729492310024,22.7824,171.0,170.91,1.4631227]
[1729492310725,22.5616827,171.04,170.92,0.1]
[1729492311019,22.5616827,171.04,170.93,0.1]
[1729492312726,22.5616827,171.04,170.94,0.1]
[1729492313821,22.5616827,171.04,170.94,1.56270825]
[1729492314616,22.5616827,171.04,170.95,0.1]
[1729492316214,0.1050827,171.04,170.95,0.1]
[1729492316950,0.1050827,171.04,170.97,0.1]
[1729492318808,0.1050827,171.04,170.95,36.3052]
[1729492319221,0.1050827,171.04,170.95,36.2052]
[1729492319410,0.1050827,171.04,170.93,0.1]
[1729492319920,0.1050827,171.04,170.92,20.1]
[1729492320436,0.1050827,171.04,170.92,20.0]
[1729492321512,0.1050827,171.04,170.95,0.1]
[1729492322727,0.1050827,171.04,170.96,0.1]
[1729492322921,0.1050827,171.04,170.97,0.1]
[1729492323311,0.1050827,171.04,170.98,0.1]
[1729492323836,0.1050827,171.04,171.0,0.1]
[1729492324131,0.1050827,171.04,171.01,0.1]
[1729492324938,0.1050827,171.04,170.99,20.1]
[1729492325332,0.1050827,171.04,171.0,0.1]
[1729492326030,0.1050827,171.04,170.99,20.0]
[1729492326031,0.1050827,171.04,170.99,20.1]
[1729492326538,0.1050827,171.04,170.99,20.0]
[1729492326917,0.1050827,171.04,170.99,20.1]
[1729492327113,0.1050827,171.04,170.99,20.0]
[1729492327312,0.1050827,171.04,170.97,20.0]
[1729492327544,0.1050827,171.04,170.95,20.1]
[1729492328152,23.776884,171.03,170.92,0.1]
[1729492328712,23.776884,171.03,170.91,1.04]
[1729492328937,23.776884,171.03,170.91,0.1]
[1729492329132,23.776884,171.03,170.92,0.1]
[1729492330016,23.776884,171.03,170.92,0.2]
[1729492330241,22.9301827,171.04,170.96,0.1]
[1729492331245,0.1050827,171.04,170.98,0.1]
[1729492331540,0.1050827,171.04,170.98,20.1]
[1729492331734,0.1050827,171.04,170.98,20.0]
[1729492332243,0.1050827,171.04,170.96,20.1]
[1729492332419,0.1050827,171.04,170.96,20.0]
[1729492332623,0.1050827,171.04,170.95,6.8033]
[1729492332624,0.1050827,171.04,170.95,0.1]
[1729492333541,0.1050827,171.04,170.94,20.1]
[1729492333743,0.1050827,171.04,170.94,20.2]
[1729492333941,0.1050827,171.04,170.94,20.1]
[1729492334424,0.1050827,171.04,170.94,20.0]
[1729492336423,0.1050827,171.04,170.95,0.1]
[1729492336620,0.1050827,171.04,170.96,0.1]
[1729492336821,0.1050827,171.04,170.98,0.2]
[1729492337034,0.1050827,171.04,170.97,0.1]
[1729492337340,0.1050827,171.04,170.96,20.1]
[1729492337721,0.1050827,171.04,170.94,20.1]
[1729492338129,0.1050827,171.04,170.94,20.2]
[1729492338450,0.1050827,171.04,170.95,0.1]
[1729492338941,0.1050827,171.04,170.94,20.2]
[1729492339120,0.1050827,171.04,170.94,20.1]
[1729492340325,0.1050827,171.04,170.94,20.2]
[1729492341561,0.1050827,171.04,170.94,20.1]
[1729492342643,0.1050827,171.04,170.94,20.2]
[1729492344028,0.1050827,171.04,170.95,0.1]
[1729492344341,0.1050827,171.04,170.96,0.1]
[1729492344548,0.1050827,171.04,170.95,0.1]
[1729492344853,0.1050827,171.04,170.97,0.1]
[1729492345151,0.1050827,171.04,170.98,0.1]
[1729492345351,0.1050827,171.04,170.99,0.1]
[1729492347539,0.1050827,171.04,170.98,0.2]
[1729492347935,0.1050827,171.04,170.99,0.1]
[1729492348945,0.1050827,171.04,170.98,0.1]
[1729492349254,0.1050827,171.04,170.99,0.1]
[1729492349425,0.1050827,171.04,170.98,0.1]
[1729492349629,0.1050827,171.04,170.99,0.1]
[1729492350241,0.1050827,171.04,170.95,0.1]
[1729492350544,0.1050827,171.04,170.95,19.69]
[1729492350769,0.1050827,171.04,170.94,0.1]
[1729492351053,0.1050827,171.04,170.94,1.56236843]
[1729492351442,0.1050827,171.04,170.95,0.1]
[1729492353133,0.1050827,171.04,170.95,1.56233237]
[1729492354255,0.1050827,171.04,170.97,0.1]
[1729492354554,0.1050827,171.04,170.97,0.2]
[1729492355138,0.1050827,171.04,170.98,0.1]
[1729492356139,0.1050827,171.04,170.95,1.56233237]
[1729492356547,0.1050827,171.04,170.95,1.66233237]
[1729492357054,0.1050827,171.04,170.95,1.46233237]
[1729492357655,23.776884,171.02,170.93,16.6576]
[1729492357835,23.776884,171.02,170.94,1.46249377]
[1729492358036,23.776884,171.02,170.95,1.46249377]
[1729492358235,23.776884,171.02,170.96,1.46249377]
[1729492358443,23.776884,171.02,170.93,0.2]
[1729492358652,23.776884,171.02,170.93,1.56250707]
[1729492358856,23.776884,171.02,170.93,21.66250707]
[1729492359037,23.776884,171.02,170.94,1.46250707]
[1729492362641,23.776884,171.02,170.92,3.80117065]
[1729492362850,23.776884,171.02,170.93,1.46250658]
[1729492363055,23.776884,171.02,170.94,1.46250658]
[1729492363260,23.776884,171.02,170.95,1.46250658]
[1729492363443,23.776884,171.02,170.96,1.46250658]
[1729492363646,23.776884,171.02,170.97,1.46250658]
[1729492363863,23.776884,171.02,170.9,8.65209041]
[1729492364064,23.776884,171.02,170.91,1.4627297]
[1729492364262,23.776884,171.02,170.92,1.4627297]
[1729492364443,23.776884,171.02,170.93,1.4627297]
[1729492364645,23.776884,171.02,170.94,1.4627297]
[1729492364860,23.776884,171.02,170.95,1.4627297]
[1729492365058,23.776884,171.02,170.96,1.4627297]
[1729492365260,23.776884,171.02,170.97,1.4627297]
[1729492365460,23.776884,171.02,170.98,1.4627297]
[1729492365665,23.776884,171.02,170.9,8.65209041]
[1729492365868,23.776884,171.02,170.91,1.46276223]
[1729492366062,22.1954,171.03,170.92,1.46276223]
[1729492366274,22.1954,171.03,170.92,0.1]
[1729492366575,22.1954,171.03,170.93,1.46276075]
[1729492366863,22.1954,171.03,170.94,1.46276075]
[1729492367044,22.1954,171.03,170.95,1.46276075]
[1729492367245,22.1954,171.03,170.96,1.46276075]
[1729492367474,23.776884,171.02,170.97,1.46276075]
[1729492367659,23.776884,171.02,170.98,1.46276075]
[1729492367846,23.776884,171.02,170.99,1.46276075]
[1729492368047,23.776884,171.02,171.0,1.46276075]
[1729492368257,23.776884,171.02,171.01,1.46276075]
[1729492368453,23.776884,171.02,170.92,1.46276075]
[1729492368656,23.776884,171.02,170.93,1.46276075]
[1729492368852,23.776884,171.02,170.94,1.46276075]
[1729492369148,23.776884,171.02,170.95,1.46276075]
[1729492369350,23.776884,171.02,170.96,1.46276075]
[1729492369564,23.776884,171.02,170.97,1.46276075]
[1729492369771,23.776884,171.02,170.98,1.46261733]
[1729492369972,23.776884,171.02,170.99,1.46261733]
[1729492370263,23.776884,171.02,171.0,1.46261733]
[1729492370442,23.776884,171.02,171.01,1.46261733]
[1729492371646,22.1954,171.03,171.01,1.46261733]
[1729492371851,15.5452,171.03,171.02,1.46261733]
[1729492372068,0.1050827,171.04,171.02,1.46261733]
[1729492372265,0.1050827,171.04,171.03,1.46261733]
[1729492373470,0.1050827,171.04,170.94,1.46261733]
[1729492373648,0.1050827,171.04,170.95,1.46261733]
[1729492373856,0.1050827,171.04,170.96,1.46261733]
[1729492374059,0.1050827,171.04,170.97,1.46261733]
[1729492374252,0.1050827,171.04,170.98,1.46261733]
[1729492374453,0.1050827,171.04,170.99,1.46261733]
[1729492374669,0.1050827,171.04,171.0,1.46261733]
[1729492374853,0.1050827,171.04,171.01,1.46261733]
[1729492375053,0.1050827,171.04,171.02,1.46261733]
[1729492375259,0.1050827,171.04,170.92,16.4121]
[1729492375462,0.1050827,171.04,170.93,1.46261223]
[1729492375660,0.1050827,171.04,170.94,1.46261223]
[1729492375875,0.1050827,171.04,170.95,1.46261223]